fUST/lending_fUST_20240408
["ID","MTS","AMOUNT","RATE_DAILY","PERIOD"]
[321856491,1712566254864,-255.6408018,0.00068493,120]
[321856492,1712566254874,-500.0,0.00068493,120]
[321856493,1712566254883,-467.62234672,0.00068493,120]
[321856494,1712566254892,-500.0,0.00068493,120]
[321856495,1712566254903,-500.0,0.00068493,120]
[321856496,1712566254912,-500.0,0.00068493,120]
[321856497,1712566254922,-500.0,0.00068493,120]
[321856498,1712566254932,-500.0,0.00068493,120]
[321856499,1712566254942,-500.0,0.00068493,120]
[321856500,1712566254951,-500.0,0.00068493,120]
[321856501,1712566254961,-500.0,0.00068493,120]
[321856502,1712566254970,-500.0,0.00068493,120]
[321856503,1712566254980,-500.0,0.00068493,120]
[321856504,1712566254990,-270.21512068,0.00068493,120]
[321856505,1712566255000,-500.0,0.00068493,120]
[321856506,1712566255010,-500.0,0.00068493,120]
[321856507,1712566255019,-500.0,0.00068493,120]
[321856508,1712566255029,-500.0,0.00068493,120]
[321856509,1712566255038,-500.0,0.00068493,120]
[321856510,1712566255048,-500.0,0.00068493,120]
[321856511,1712566255057,-500.0,0.00068493,120]
[321856512,1712566255066,-500.0,0.00068493,120]
[321856513,1712566255076,-500.0,0.00068493,120]
[321856514,1712566255085,-500.0,0.00068493,120]
[321856515,1712566255093,-500.0,0.00068493,120]
[321856516,1712566255102,-500.0,0.00068493,120]
[321856517,1712566255111,-500.0,0.00068493,120]
[321856518,1712566255120,-500.0,0.00068493,120]
[321856519,1712566255129,-500.0,0.00068493,120]
[321856520,1712566255138,-500.0,0.00068493,120]
[321856521,1712566255146,-500.0,0.00068493,120]
[321856522,1712566255155,-500.0,0.00068493,120]
[321856523,1712566255164,-500.0,0.00068493,120]
[321856524,1712566255173,-500.0,0.00068493,120]
[321856525,1712566255182,-500.0,0.00068493,120]
[321856526,1712566255191,-500.0,0.00068493,120]
[321856527,1712566255200,-500.0,0.00068493,120]
[321856528,1712566255210,-500.0,0.00068493,120]
[321856529,1712566255219,-645.76994637,0.00068493,120]
[321856530,1712566255278,-500.0,0.00068493,120]
[321856531,1712566255291,-500.0,0.00068493,120]
[321856532,1712566255301,-500.0,0.00068493,120]
[321856533,1712566255310,-500.0,0.00068493,120]
[321856534,1712566255319,-500.0,0.00068493,120]
[321856535,1712566255330,-500.0,0.00068493,120]
[321856536,1712566255339,-500.0,0.00068493,120]
[321856537,1712566255348,-500.0,0.00068493,120]
[321856538,1712566255357,-500.0,0.00068493,120]
[321856539,1712566255366,-283.54400454,0.00068493,120]
[321856540,1712566255376,-500.0,0.00068493,120]
[321856541,1712566255385,-500.0,0.00068493,120]
[321856542,1712566255394,-500.0,0.00068493,120]
[321856543,1712566255404,-500.0,0.00068493,120]
[321856544,1712566255413,-500.0,0.00068493,120]
[321856545,1712566255422,-500.0,0.00068493,120]
[321856546,1712566255432,-500.0,0.00068493,120]
[321856547,1712566255441,-500.0,0.00068493,120]
[321856548,1712566255450,-500.0,0.00068493,120]
[321856549,1712566255461,-500.0,0.00068493,120]
[321856550,1712566255470,-162.96,0.00068493,120]
[321856551,1712566255479,-500.0,0.00068493,120]
[321856552,1712566255489,-500.0,0.00068493,120]
[321856553,1712566255498,-373.18659485,0.00068493,120]
[321856554,1712566255508,-500.0,0.00068493,120]
[321856555,1712566255517,-282.85413175,0.00068493,120]
[321856556,1712566255526,-500.0,0.00068493,120]
[321856557,1712566255535,-500.0,0.00068493,120]
[321856558,1712566255544,-500.0,0.00068493,120]
[321856559,1712566255555,-500.0,0.00068493,120]
[321856560,1712566255564,-388.45655663,0.00068493,120]
[321856561,1712566255573,-500.0,0.00068493,120]
[321856562,1712566255582,-500.0,0.00068493,120]
[321856563,1712566255591,-500.0,0.00068493,120]
[321856564,1712566255601,-500.0,0.00068493,120]
[321856565,1712566255610,-500.0,0.00068493,120]
[321856566,1712566255619,-543.08921016,0.00068493,120]
[321856567,1712566255629,-500.0,0.00068493,120]
[321856568,1712566255638,-500.0,0.00068493,120]
[321856569,1712566255649,-500.0,0.00068493,120]
[321856570,1712566255658,-500.0,0.00068493,120]
[321856571,1712566255668,-197.06902276,0.00068493,120]
[321856572,1712566255677,-500.0,0.00068493,120]
[321856573,1712566255686,-500.0,0.00068493,120]
[321856574,1712566255695,-500.0,0.00068493,120]
[321856575,1712566255705,-500.0,0.00068493,120]
[321856576,1712566255714,-500.0,0.00068493,120]
[321856577,1712566255724,-500.0,0.00068493,120]
[321856578,1712566255733,-293.81345111,0.00068493,120]
[321856579,1712566255743,-500.0,0.00068493,120]
[321856580,1712566255753,-500.0,0.00068493,120]
[321856581,1712566255762,-500.0,0.00068493,120]
[321856582,1712566255772,-500.0,0.00068493,120]
[321856583,1712566255782,-500.0,0.00068493,120]
[321856584,1712566255792,-500.0,0.00068493,120]
[321856585,1712566255802,-500.0,0.00068493,120]
[321856586,1712566255812,-500.0,0.00068493,120]
[321856587,1712566255822,-500.0,0.00068493,120]
[321856588,1712566255832,-500.0,0.00068493,120]
[321856589,1712566255842,-500.0,0.00068493,120]
[321856590,1712566255851,-500.0,0.00068493,120]
[321856591,1712566255861,-500.0,0.00068493,120]
[321856592,1712566255870,-500.0,0.00068493,120]
[321856593,1712566255880,-519.05745472,0.00068493,120]
[321856594,1712566255890,-517.81031367,0.00068493,120]
[321856595,1712566255899,-500.0,0.00068493,120]
[321856596,1712566255908,-500.0,0.00068493,120]
[321856597,1712566255918,-500.0,0.00068493,120]
[321856598,1712566255929,-295.98,0.00068493,120]
[321856599,1712566255939,-529.56234416,0.00068493,120]
[321856600,1712566255949,-500.0,0.00068493,120]
[321856601,1712566255960,-500.0,0.00068493,120]
[321856602,1712566255970,-500.0,0.00068493,120]
[321856603,1712566255980,-510.97477035,0.00068493,120]
[321856604,1712566255990,-500.0,0.00068493,120]
[321856605,1712566256000,-500.0,0.00068493,120]
[321856606,1712566256010,-500.0,0.00068493,120]
[321856607,1712566256020,-500.0,0.00068493,120]
[321856608,1712566256029,-500.0,0.00068493,120]
[321856609,1712566256038,-500.0,0.00068493,120]
[321856610,1712566256048,-500.0,0.00068493,120]
[321856611,1712566256057,-536.79520926,0.00068493,120]
[321856612,1712566256067,-500.0,0.00068493,120]
[321856613,1712566256076,-500.0,0.00068493,120]
[321856614,1712566256085,-590.45897836,0.00068493,120]
[321856615,1712566256094,-500.0,0.00068493,120]
[321856616,1712566256104,-500.0,0.00068493,120]
[321856617,1712566256114,-500.0,0.00068493,120]
[321856618,1712566256124,-500.0,0.00068493,120]
[321856619,1712566256134,-500.0,0.00068493,120]
[321856620,1712566256144,-500.0,0.00068493,120]
[321856621,1712566256154,-500.0,0.00068493,120]
[321856622,1712566256163,-500.0,0.00068493,120]
[321856623,1712566256173,-500.0,0.00068493,120]
[321856624,1712566256183,-500.0,0.00068493,120]
[321856625,1712566256192,-500.0,0.00068493,120]
[321856626,1712566256201,-500.0,0.00068493,120]
[321856627,1712566256211,-500.0,0.00068493,120]
[321856628,1712566256222,-163.31576565,0.00068493,120]
[321856629,1712566256237,-500.0,0.00068493,120]
[321856630,1712566256288,-500.0,0.00068493,120]
[321856631,1712566256299,-500.0,0.00068493,120]
[321856632,1712566256309,-500.0,0.00068493,120]
[321856633,1712566256319,-500.0,0.00068493,120]
[321856634,1712566256329,-500.0,0.00068493,120]
[321856635,1712566256340,-500.0,0.00068493,120]
[321856636,1712566256350,-500.0,0.00068493,120]
[321856637,1712566256360,-500.0,0.00068493,120]
[321856638,1712566256371,-500.0,0.00068493,120]
[321856639,1712566256382,-500.0,0.00068493,120]
[321856640,1712566256391,-500.0,0.00068493,120]
[321856641,1712566256402,-500.0,0.00068493,120]
[321856642,1712566256412,-500.0,0.00068493,120]
[321856643,1712566256423,-500.0,0.00068493,120]
[321856644,1712566256433,-500.0,0.00068493,120]
[321856645,1712566256443,-500.0,0.00068493,120]
[321856646,1712566256453,-500.0,0.00068493,120]
[321856647,1712566256465,-500.0,0.00068493,120]
[321856648,1712566256474,-500.0,0.00068493,120]
[321856649,1712566256484,-500.0,0.00068493,120]
[321856650,1712566256495,-500.0,0.00068493,120]
[321856651,1712566256506,-500.0,0.00068493,120]
[321856652,1712566256516,-500.0,0.00068493,120]
[321856653,1712566256573,-500.0,0.00068493,120]
[321856654,1712566256588,-500.0,0.00068493,120]
[321856655,1712566256598,-500.0,0.00068493,120]
[321856656,1712566256610,-500.0,0.00068493,120]
[321856657,1712566256620,-500.0,0.00068493,120]
[321856658,1712566256629,-500.0,0.00068493,120]
[321856659,1712566256638,-500.0,0.00068493,120]
[321856660,1712566256647,-379.76200893,0.00068493,120]
[321856661,1712566256658,-500.0,0.00068493,120]
[321856662,1712566256668,-500.0,0.00068493,120]
[321856663,1712566256677,-371.98267165,0.00068493,120]
[321856690,1712566411343,475280.00803917,0.00041337,60]
[321856740,1712567226097,-158.46962415,0.00026023,2]
[321856741,1712567226117,-2935.09161467,0.00026024,2]
[321856742,1712567226139,-2092.79838707,0.00026025,2]
[321856743,1712567226159,-332.6291542,0.00026027,2]
[321856744,1712567226178,-208.526246,0.00026038,2]
[321856745,1712567226199,-300.0,0.00026488,2]
[321856746,1712567226219,-154.8915759,0.00027,2]
[321856747,1712567226241,-152.35886981,0.00027229,2]
[321856748,1712567226263,-631.97962964,0.00027231,3]
[321856749,1712567226284,-217.65414719,0.00027297,2]
[321856750,1712567226306,-2265.7179599,0.0002733,2]
[321856751,1712567226328,-1073.70462147,0.00027395,2]
[321856753,1712567232170,-15322.051144,0.00025852,2]
[321856754,1712567232192,-21211.03378844,0.00027395,2]
[321856755,1712567232212,-166.940111,0.00027397,2]
[321856756,1712567232233,-1529.10368385,0.00028,2]
[321856757,1712567232254,-420.0,0.00029136,2]
[321856758,1712567232274,-1737.46440871,0.000299,2]
[321856759,1712567234088,-262.53559129,0.000299,2]
[321856760,1712567234108,-331.1831235,0.00029997,2]
[321856761,1712567234129,-500.0,0.00029997,2]
[321856762,1712567234149,-4236.44324824,0.00029998,2]
[321856763,1712567234169,-177.21194202,0.00029998,2]
[321856764,1712567234188,-1269.46863255,0.00029998,2]
[321856765,1712567234207,-280.81740973,0.00029998,2]
[321856766,1712567234227,-2120.63245232,0.00029998,2]
[321856767,1712567234247,-510.37387361,0.00029998,2]
[321856768,1712567234267,-1287.29576434,0.00029998,2]
[321856769,1712567234287,-155.1811457,0.00029998,2]
[321856770,1712567234306,-210.77487099,0.00029998,2]
[321856771,1712567234326,-290.23277151,0.00029998,2]
[321856772,1712567234345,-192.34526529,0.00029998,2]
[321856773,1712567234365,-407.36237931,0.00029998,2]
[321856774,1712567234385,-486.34921375,0.00029998,2]
[321856775,1712567234404,-188.00205176,0.00029998,2]
[321856776,1712567234424,-473.12701109,0.00029998,2]
[321856777,1712567234446,-1140.11063756,0.00029998,2]
[321856778,1712567234466,-171.809124,0.00029998,2]
[321856779,1712567234486,-155.81353893,0.00029998,2]
[321856780,1712567234508,-155.06512735,0.00029998,2]
[321856781,1712567234528,-400.0,0.00029998,2]
[321856782,1712567234548,-371.802521,0.00029998,2]
[321856783,1712567234567,-2028.53087485,0.00029998,2]
[321856784,1712567234666,-161.55797126,0.00029998,2]
[321856785,1712567234690,-1048.23480904,0.00029999,2]
[321856786,1712567234714,-81658.84305259,0.0003,3]
[321856787,1712567234734,-117056.78606723,0.0003,7]
[321856788,1712567234756,-217.65414718,0.000319,2]
[321856789,1712567234776,-190.72501436,0.00032,4]
[321856790,1712567234796,-452.0,0.0003205,2]
[321856791,1712567234816,-464.50545485,0.00034,4]
[321856792,1712567234836,-166.940111,0.00034703,2]
[321856793,1712567234855,-595.96032213,0.00035,2]
[321856794,1712567234877,-6854.02678516,0.00035,4]
[321856795,1712567234897,-154.93802479,0.00035,4]
[321856796,1712567234917,-188.19613238,0.00036597,2]
[321856797,1712567234938,-2001.95818047,0.00036698,5]
[321856800,1712567240102,-530.08765829,0.00036698,5]
[321856801,1712567240122,-1240.42355071,0.00037203,4]
[321856802,1712567240144,-1240.42355071,0.00037203,4]
[321856803,1712567240163,-362.39968158,0.00038998,2]
[321856804,1712567240183,-319.61536248,0.00039,30]
[321856805,1712567240201,-47630.5587,0.0003954,30]
[321856806,1712567240221,-18111.84308391,0.0004,120]
[321856807,1712567240242,-200.000001,0.0004,2]
[321856808,1712567240262,-4455.87491467,0.0004,4]
[321856809,1712567240281,-26765.26350322,0.0004,2]
[321856810,1712567245085,-321.92300578,0.00036697,4]
[321856811,1712567245103,-3234.73649678,0.0004,2]
[321856812,1712567245122,-1500.0,0.0004,2]
[321856813,1712567245144,-14949.58125785,0.00040097,2]
[321856814,1712567254172,-1676.57667763,0.00029998,2]
[321856815,1712567254198,-245.74881865,0.00040096,4]
[321856816,1712567254223,-30873.31527284,0.00040097,2]
[321856817,1712567254245,-1060.71891924,0.00041,4]
[321856818,1712567254270,-4760.69228793,0.00041073,2]
[321856819,1712567254293,-166.666666,0.00041096,2]
[321856820,1712567254317,-500.0,0.00041096,31]
[321856821,1712567254340,-500.0,0.00041096,31]
[321856822,1712567254363,-411.98580231,0.00041096,31]
[321856823,1712567254386,-151.9,0.00041143,35]
[321856824,1712567254412,-162.56,0.00041143,35]
[321856825,1712567254438,-150.5,0.0004115,35]
[321856826,1712567254461,-150.5,0.00041153,35]
[321856827,1712567254498,-150.5,0.00041153,35]
[321856828,1712567254532,-150.5,0.0004116,35]
[321856829,1712567254562,-150.5,0.00041163,35]
[321856830,1712567254591,-150.5,0.00041163,35]
[321856831,1712567254621,-150.5,0.0004117,35]
[321856832,1712567254654,-4749.88,0.00041179,7]
[321856833,1712567254682,-4749.88,0.00041179,7]
[321856834,1712567254707,-4749.88,0.00041179,7]
[321856835,1712567254730,-4749.88,0.00041179,7]
[321856836,1712567254754,-4749.88,0.00041179,7]
[321856837,1712567254779,-356.22133865,0.00041179,31]
[321856838,1712567254807,-605.13677242,0.00041179,31]
[321856839,1712567254840,-67425.15719183,0.0004118,3]
[321856926,1712567434062,-1067.70188936,0.000299,2]
[321856930,1712567434284,-932.29811064,0.000299,2]
[321856931,1712567434294,-44.64928636,0.00035455,14]
[321856932,1712567434305,-3455.35071364,0.00035455,14]
[321856933,1712567434314,-464.50545485,0.00037061,4]
[321856934,1712567434324,-595.96032213,0.00037061,2]
[321856935,1712567434333,-1240.42355071,0.00037062,4]
[321856936,1712567434342,-150.0,0.0003908,2]
[321856937,1712567434352,-213.37840794,0.00039119,4]
[321856938,1712567434361,-631.46875896,0.00039482,2]
[321856939,1712567434370,-19852.84352279,0.00039945,2]
[321857010,1712567438990,-720.44,0.00039945,2]
[321857079,1712567439941,-1187.40446215,0.00039945,2]
[321857080,1712567439953,-16996.89743199,0.00039945,2]
[321857081,1712567439964,-1337.44904743,0.00039945,2]
[321857082,1712567439973,-3564.69993173,0.0004,4]
[321857083,1712567439983,-500.97194289,0.0004,15]
[321857084,1712567439992,-272.69362755,0.00040095,4]
[321857085,1712567440002,-4447.80839933,0.00040096,4]
[321857086,1712567440011,-1060.71891924,0.00041,4]
[321857088,1712567440021,-4284.6230592,0.0004108,2]
[321857089,1712567440030,-398.08743543,0.00041178,30]
[321857090,1712567440039,-31814.19917949,0.0004118,3]
[321857101,1712567440156,-608.74,0.0004118,3]
[321857104,1712567440167,-18316.34646772,0.0004118,3]
[321857185,1712567441261,-2371.12688876,0.0004118,3]
[321857339,1712567444250,-6185.83047996,0.0004118,3]
[321857340,1712567444260,-514719.35568051,0.0004118,60]
[321857341,1712567444274,-244124.49760875,0.0004118,60]
[321857342,1712567444325,-37352.57709668,0.0004118,60]
[321857505,1712567448452,-1240.42355071,0.00037062,4]
[321857507,1712567448461,-1473824.20439505,0.0004118,60]
[321857625,1712567481006,-300000.0,0.0004118,60]
[321857626,1712567483720,-2000.0,0.00028,2]
[321857627,1712567483746,-295.78468449,0.00037061,4]
[321857628,1712567483774,-1240.42355071,0.00037062,4]
[321857629,1712567483801,-1015.2,0.00038,2]
[321857630,1712567483829,-161.38183383,0.0003912,4]
[321857631,1712567483858,-380.58151889,0.00039144,4]
[321857632,1712567483886,-169.069656,0.00039571,2]
[321857633,1712567483914,-284.56350231,0.00039943,4]
[321857634,1712567483944,-267.48919917,0.00039943,4]
[321857635,1712567483970,-156.49380608,0.00039943,4]
[321857636,1712567483995,-322.11752792,0.00039943,4]
[321857637,1712567484020,-346.03519534,0.00039943,4]
[321857638,1712567484046,-1404.33822439,0.00039943,4]
[321857639,1712567484072,-272.83650472,0.00039943,4]
[321857640,1712567484103,-155.80345665,0.00039943,4]
[321857641,1712567484128,-243.48243614,0.00039943,4]
[321857642,1712567484156,-542.94049469,0.00039943,2]
[321857643,1712567484184,-1572.33263983,0.00039943,2]
[321857644,1712567484209,-4917.06204123,0.00039943,4]
[321857645,1712567484235,-155.0,0.00039943,2]
[321857646,1712567484262,-160.52734005,0.00039944,4]
[321857647,1712567484289,-5197.13731202,0.00039944,4]
[321857648,1712567484315,-17970.83014232,0.00039945,2]
[321857649,1712567484342,-2000.0,0.0004108,2]
[321857650,1712567484369,-804.45358295,0.0004108,2]
[321857651,1712567484394,-449.81241152,0.00041178,4]
[321857652,1712567484419,-1075.58919652,0.00041178,4]
[321857653,1712567484447,-333.08757566,0.00041178,4]
[321857654,1712567484473,-5653.81569782,0.00041178,4]
[321857655,1712567484499,-155.44996013,0.00041178,4]
[321857656,1712567484620,-3564.69993173,0.00041179,4]
[321857657,1712567484647,-938.76794308,0.00041179,4]
[321857658,1712567484673,-767.02541968,0.00041179,2]
[321857659,1712567484701,-464.50545485,0.00041179,4]
[321857660,1712567484726,-520.28025605,0.00041179,4]
[321857661,1712567484757,-397.76918839,0.0004118,120]
[321857662,1712567489470,50401.80656354,0.0004118,3]
[321857663,1712567489661,188.4812004,0.00041179,2]
[321857702,1712568501354,-218.231685,0.00038066,120]
[321857703,1712568501378,-1886.73308133,0.0004,120]
[321857704,1712568501463,-218.231685,0.0004,120]
[321857705,1712568501486,-458.57186367,0.0004088,60]
[321857706,1712568511851,-165.547649,0.00027397,2]
[321857707,1712568511879,-239.58143426,0.00030748,4]
[321857708,1712568511906,-1719.37908329,0.00036961,4]
[321857709,1712568512045,-5634.27439425,0.00036962,2]
[321857710,1712568512075,-1355.96517158,0.00037062,4]
[321857711,1712568512104,-482.7552253,0.00038111,2]
[321857712,1712568512132,-161.0490912,0.0003819,2]
[321857713,1712568512159,-400.0,0.00038353,3]
[321857714,1712568512186,-158.327961,0.00038355,2]
[321857715,1712568512213,-250.0,0.00038415,2]
[321857716,1712568512240,-172.182299,0.00038624,2]
[321857717,1712568512267,-155.00620025,0.00038838,4]
[321857718,1712568512299,-150.0,0.0003908,2]
[321857719,1712568512330,-8593.3808387,0.00039175,2]
[321857720,1712568512358,-605.66350825,0.000399,9]
[321857721,1712568512384,-3564.69993173,0.0004,4]
[321857722,1712568512412,-378.89113491,0.00040355,4]
[321857723,1712568512439,-1344.39772785,0.0004088,60]
[321857724,1712568512469,-2265.7179599,0.00040882,4]
[321857725,1712568512495,-158.46962415,0.00040882,4]
[321857726,1712568512523,-2935.09161467,0.00040882,4]
[321857727,1712568512551,-1073.70462147,0.00040882,4]
[321857728,1712568512578,-400.0,0.00040882,2]
[321857729,1712568512604,-276.78016921,0.00040882,4]
[321857730,1712568512636,-433.14110518,0.00040882,4]
[321857731,1712568512665,-156.48191588,0.00040882,4]
[321857732,1712568512692,-1975.03858149,0.00040882,4]
[321857733,1712568512720,-155.0,0.00040882,4]
[321857734,1712568512747,-282.66267272,0.00040882,4]
[321857735,1712568512776,-209.58192005,0.00040882,2]
[321857736,1712568512807,-402.17746592,0.00040882,4]
[321857737,1712568512836,-1737.1037055,0.00040882,4]
[321857738,1712568512866,-290.42793485,0.00040882,2]
[321857739,1712568512895,-370.45382675,0.00040882,4]
[321857740,1712568512925,-156.54809607,0.00040882,4]
[321857741,1712568512955,-1230.27021172,0.00040882,4]
[321857742,1712568512983,-1069.76107659,0.00040882,4]
[321857743,1712568513012,-5417.2456297,0.00040882,4]
[321857744,1712568513041,-261.83541363,0.00040882,4]
[321857745,1712568513069,-413.58408041,0.00040882,4]
[321857746,1712568513098,-687.71208168,0.00040882,4]
[321857747,1712568513125,-1237.45534105,0.00040882,4]
[321857748,1712568513153,-545.84349623,0.00040882,2]
[321857749,1712568513181,-10781.04600243,0.00040883,4]
[321857750,1712568513211,-43022.29882401,0.00040884,3]
[321857751,1712568513239,-2000.0,0.00040888,2]
[321857752,1712568513264,-3513.44330595,0.00041,2]
[321857753,1712568513366,-188.42627071,0.00041,2]
[321857754,1712568513396,-154.9690062,0.00041,31]
[321857755,1712568513426,-926.86095111,0.00041,4]
[321857756,1712568513455,-177.5768568,0.00041096,2]
[321857757,1712568513485,-166.666666,0.00041096,2]
[321857758,1712568513514,-500.0,0.00041096,31]
[321857759,1712568513545,-500.0,0.00041096,31]
[321857760,1712568513574,-500.0,0.00041096,31]
[321857761,1712568513603,-500.0,0.00041096,31]
[321857762,1712568513629,-282.11179573,0.00041096,31]
[321857763,1712568513656,-500.0,0.00041096,31]
[321857764,1712568513683,-500.0,0.00041096,31]
[321857765,1712568513710,-500.0,0.00041096,31]
[321857766,1712568513736,-500.0,0.00041096,31]
[321857767,1712568513763,-500.0,0.00041096,31]
[321857768,1712568513793,-500.0,0.00041096,31]
[321857769,1712568513821,-500.0,0.00041096,31]
[321857770,1712568513850,-500.0,0.00041096,31]
[321857771,1712568513877,-500.0,0.00041096,31]
[321857772,1712568513906,-500.0,0.00041096,31]
[321857773,1712568513932,-500.0,0.00041096,31]
[321857774,1712568513958,-500.0,0.00041096,31]
[321857775,1712568513986,-500.0,0.00041096,31]
[321857776,1712568514013,-500.0,0.00041096,31]
[321857777,1712568514041,-500.0,0.00041096,31]
[321857778,1712568514068,-500.0,0.00041096,31]
[321857779,1712568514095,-211.10073738,0.00041178,4]
[321857780,1712568514120,-157.22434872,0.00041178,4]
[321857781,1712568514147,-240.61118676,0.00041178,4]
[321857782,1712568514174,-407.59656825,0.00041178,4]
[321857783,1712568514201,-1032.11817233,0.00041178,4]
[321857784,1712568514228,-306.98393898,0.00041179,4]
[321857785,1712568514255,-337.16548888,0.00041179,4]
[321857786,1712568514284,-1437.55118742,0.00041179,4]
[321857787,1712568514311,-464.50545485,0.00041179,4]
[321857788,1712568514339,-397.76918839,0.00041179,120]
[321857789,1712568514368,-155.21440017,0.00041179,4]
[321857790,1712568514395,-598.31797331,0.00041337,4]
[321857791,1712568514422,-212.30106103,0.00041337,4]
[321857792,1712568514449,-166.940111,0.00042009,2]
[321857793,1712568514477,-166.666666,0.00042058,2]
[321857794,1712568514507,-560.0,0.00042188,3]
[321857795,1712568514538,-200.0,0.00042836,120]
[321857796,1712568514567,-1060.23528949,0.00043,14]
[321857797,1712568514596,-166.666666,0.00043019,2]
[321857798,1712568514625,-166.666666,0.00043981,2]
[321857799,1712568514654,-798.59269552,0.00044,30]
[321857800,1712568514682,-150.0,0.0004408,2]
[321857801,1712568514710,-218.231685,0.0004441,120]
[321857802,1712568514737,-13597.85104351,0.0004456,2]
[321857803,1712568514764,-166.666666,0.00044942,2]
[321857804,1712568514794,-154.90705577,0.00045,4]
[321857805,1712568514821,-8516.28804601,0.00045,120]
[321857806,1712568514849,-642.28051152,0.00045,2]
[321857807,1712568514876,-3964.18957858,0.00045,2]
[321857808,1712568514906,-5865.81374509,0.00045,30]
[321857809,1712568514934,-358.88498079,0.00045,120]
[321857810,1712568514961,-166.666666,0.00045904,2]
[321857811,1712568514989,-227.30875257,0.00046215,5]
[321857812,1712568515102,-783.0,0.00046407,3]
[321857813,1712568515133,-150.0,0.000472,5]
[321857814,1712568515163,-177678.52877369,0.0004728,120]
[321857815,1712568515192,-153.0,0.00047894,2]
[321857816,1712568515223,-153.0,0.00047894,2]
[321857817,1712568515251,-154.0645432,0.00047894,2]
[321857818,1712568515282,-202.7046065,0.00047894,2]
[321857819,1712568515311,-153.0,0.00047894,2]
[321857820,1712568515340,-153.0,0.00047894,2]
[321857821,1712568515371,-202.7046065,0.00047894,2]
[321857822,1712568515399,-306.0,0.00047894,2]
[321857823,1712568515427,-202.7046065,0.00047894,2]
[321857824,1712568515456,-153.0,0.00047894,2]
[321857825,1712568515488,-153.0,0.00047894,2]
[321857826,1712568515515,-153.0,0.00047894,2]
[321857827,1712568515546,-202.7046065,0.00047894,2]
[321857828,1712568515574,-153.0,0.00047894,2]
[321857829,1712568515602,-202.7046065,0.00047894,2]
[321857830,1712568515629,-153.0,0.00047894,2]
[321857831,1712568515657,-202.7046065,0.00047894,2]
[321857832,1712568515685,-202.6555301,0.0004796,2]
[321857833,1712568515712,-153.0,0.0004796,2]
[321857834,1712568515739,-153.0,0.0004796,2]
[321857835,1712568515765,-153.0,0.0004796,2]
[321857836,1712568515794,-153.0,0.0004796,2]
[321857837,1712568515820,-153.0,0.0004796,2]
[321857838,1712568515852,-153.0,0.0004796,2]
[321857839,1712568515884,-153.0,0.0004796,2]
[321857840,1712568515916,-153.0,0.0004796,2]
[321857841,1712568515957,-153.0,0.0004796,2]
[321857842,1712568515998,-153.0,0.00048716,2]
[321857843,1712568516039,-153.0,0.00048716,2]
[321857844,1712568517659,-153.0,0.00048716,2]
[321857845,1712568517702,-306.0,0.00048716,2]
[321857846,1712568517740,-202.7046065,0.00048716,2]
[321857847,1712568517780,-153.0,0.00048716,2]
[321857848,1712568517820,-202.7046065,0.00048716,2]
[321857849,1712568517856,-153.0,0.00048716,2]
[321857850,1712568517891,-153.0,0.00048716,2]
[321857851,1712568517929,-153.0,0.00048716,2]
[321857852,1712568517963,-202.6555301,0.00048716,2]
[321857853,1712568518002,-153.0,0.00048716,2]
[321857854,1712568518043,-153.0,0.00048716,2]
[321857855,1712568518083,-306.0,0.00048716,2]
[321857856,1712568518117,-153.0,0.00048716,2]
[321857857,1712568518151,-153.0,0.00048716,2]
[321857858,1712568518190,-153.0,0.00048716,2]
[321857859,1712568518227,-153.0,0.00048716,2]